bitfinex/quotes_SOLUSD_20250818
["timestamp","ask_amount","ask_price","bid_price","bid_amount"]
[1755533804465,8.99718173,183.35,183.31,5.45523975]
[1755533804769,8.99718173,183.36,183.32,0.66]
[1755533804935,0.42,183.4,183.33,0.66]
[1755533805139,8.99718173,183.38,183.33,9.65718173]
[1755533805349,8.99718173,183.38,183.34,0.66]
[1755533805554,8.99718173,183.37,183.32,24.1033973]
[1755533805769,8.99718173,183.37,183.32,24.7633973]
[1755533805980,8.99718173,183.35,183.31,5.45523975]
[1755533806267,8.99718173,183.32,183.28,5.45613269]
[1755533806451,8.99718173,183.31,183.27,46.34637824]
[1755533806635,8.99718173,183.31,183.27,47.00637824]
[1755533807235,8.99718173,183.31,183.28,0.66]
[1755533807466,8.99718173,183.31,183.28,6.11610769]
[1755533807774,26.0,183.33,183.28,6.11610769]
[1755533807940,26.0,183.34,183.32,0.03]
[1755533808274,0.48,183.41,183.32,0.03]
[1755533808451,8.99718173,183.39,183.33,9.65718173]
[1755533808757,30.0214484,183.38,183.33,9.65718173]
[1755533808964,30.0214484,183.38,183.32,0.03]
[1755533808965,9.05718173,183.41,183.34,0.66]
[1755533809149,8.99718173,183.39,183.34,9.65718173]
[1755533809342,4.02444268,183.38,183.34,8.99718173]
[1755533809536,4.02444268,183.37,183.35,15.11123136]
[1755533809741,8.99718173,183.38,183.35,5.45404963]
[1755533809933,8.99718173,183.38,183.34,5.45429344]
[1755533810358,13.48226518,183.35,183.32,0.03]
[1755533810668,39.48226518,183.38,183.32,19.62714369]
[1755533810861,0.06,183.41,183.36,13.48226518]
[1755533811164,26.0,183.39,183.37,14.14226518]
[1755533811345,4.02909997,183.38,183.37,14.14226518]
[1755533811546,4.02909997,183.38,183.37,19.59571994]
[1755533811856,4.02909997,183.38,183.37,5.45345476]
[1755533813063,4.02909997,183.38,183.37,19.59571994]
[1755533813306,0.06,183.41,183.38,15.10621557]
[1755533813585,0.06,183.41,183.4,34.04104345]
[1755533813944,0.06,183.41,183.4,34.70104345]
[1755533815172,0.06,183.41,183.4,21.21877827]
[1755533815347,0.06,183.41,183.4,34.70104345]
[1755533815543,0.06,183.41,183.4,21.21877827]
[1755533815957,0.06,183.41,183.4,34.70104345]
[1755533816352,0.06,183.41,183.39,59.69507883]
[1755533817371,0.06,183.41,183.39,60.35507883]
[1755533817676,0.06,183.41,183.39,46.21281365]
[1755533818375,0.06,183.41,183.39,46.87281365]
[1755533818571,0.06,183.41,183.4,14.14226518]
[1755533819657,0.06,183.41,183.4,18.10903318]
[1755533820055,0.06,183.41,183.4,5.4525627]
[1755533820266,0.06,183.41,183.4,18.93482788]
[1755533820670,0.06,183.41,183.4,34.04104345]
[1755533821777,4.05760227,183.46,183.41,15.10621557]
[1755533822077,26.06,183.47,183.45,13.48226518]
[1755533822263,0.06,183.47,183.46,0.66]
[1755533822677,4.81638231,183.47,183.45,40.72]
[1755533822883,4.05638231,183.46,183.45,40.72]
[1755533823079,18.23864749,183.46,183.4,6.1125627]
[1755533823298,13.48226518,183.42,183.37,13.48226518]
[1755533823579,0.7,183.42,183.38,46.15310432]
[1755533823770,14.18226518,183.42,183.38,46.15310432]
[1755533823969,3.71191374,183.43,183.38,46.15310432]
[1755533824174,0.06,183.43,183.41,13.48226518]
[1755533824379,0.06,183.43,183.42,40.68]
[1755533824580,0.06,183.43,183.42,54.16226518]
[1755533824780,0.06,183.43,183.38,34.19221333]
[1755533824781,14.24226518,183.43,183.38,5.45310432]
[1755533825086,13.48226518,183.41,183.39,40.68]
[1755533825288,14.18226518,183.42,183.39,40.68]
[1755533826000,13.54226518,183.43,183.39,46.13280938]
[1755533826295,14.24226518,183.43,183.39,46.13280938]
[1755533826503,13.48226518,183.42,183.39,40.68]
[1755533826864,13.48226518,183.41,183.39,40.68]
[1755533827282,13.48226518,183.4,183.39,40.68]
[1755533828398,3.7123939,183.43,183.39,46.13284363]
[1755533828694,26.0,183.41,183.39,46.79284363]
[1755533828989,0.06,183.43,183.39,46.79284363]
[1755533828990,13.54226518,183.43,183.39,46.79284363]
[1755533829199,13.48226518,183.42,183.39,40.68]
[1755533829408,13.48226518,183.41,183.39,40.68]
[1755533829966,13.48226518,183.42,183.39,40.68]
[1755533830388,9.02906116,183.41,183.39,40.68]
[1755533831172,0.06,183.43,183.39,46.13284385]
[1755533831377,26.0,183.42,183.39,46.13284385]
[1755533831792,0.06,183.43,183.39,46.79284385]
[1755533832174,0.06,183.43,183.4,9.68906116]
[1755533832576,0.06,183.43,183.41,9.68906116]
[1755533832782,0.06,183.43,183.42,40.56]
[1755533832977,9.08906116,183.43,183.42,40.56]
[1755533833176,0.06,183.43,183.42,40.56]
[1755533833385,9.08906116,183.43,183.4,40.54]
[1755533833583,0.06,183.43,183.4,40.54]
[1755533833784,0.06,183.43,183.41,5.45226541]
[1755533834000,0.06,183.43,183.41,6.11226541]
[1755533834189,0.06,183.43,183.42,0.66]
[1755533835301,0.06,183.43,183.41,5.45226541]
[1755533835498,0.06,183.43,183.41,6.11226541]
[1755533837393,0.06,183.43,183.41,5.45226541]
[1755533838195,0.06,183.43,183.4,45.99254746]
[1755533838401,0.06,183.43,183.4,40.54]
[1755533838402,9.02906116,183.41,183.4,40.54]
[1755533838983,9.02906116,183.41,183.38,40.44]
[1755533839200,9.02906116,183.4,183.38,40.44]
[1755533839603,9.02906116,183.41,183.38,40.44]
[1755533840103,26.58,183.43,183.38,40.44]
[1755533840104,9.02906116,183.4,183.38,40.44]
[1755533840574,9.02906116,183.41,183.38,40.44]
[1755533842293,9.02906116,183.41,183.38,41.1]
[1755533842492,9.02906116,183.42,183.39,0.66]
[1755533842704,9.02906116,183.41,183.38,46.58311057]
[1755533843274,9.02906116,183.4,183.38,40.47]
[1755533843506,9.68906116,183.39,183.38,0.03]
[1755533843797,3.65907316,183.42,183.38,0.03]
[1755533844006,0.66,183.41,183.38,0.03]
[1755533844209,9.02906116,183.39,183.38,0.03]
[1755533844708,9.68906116,183.39,183.38,0.03]
[1755533845005,35.02906116,183.39,183.38,0.03]
[1755533845518,39.34853419,183.39,183.38,0.03]
[1755533846505,26.0,183.39,183.38,0.03]
[1755533846691,39.34885296,183.39,183.38,0.03]
[1755533847105,29.6597918,183.39,183.38,0.03]
[1755533847417,35.02906116,183.39,183.38,0.03]
[1755533847623,35.68906116,183.39,183.38,0.03]
[1755533847829,38.69080076,183.39,183.38,0.03]
[1755533848137,39.35080076,183.39,183.38,0.03]
[1755533848438,43.41931108,183.39,183.38,0.03]
[1755533848920,42.75931108,183.39,183.38,0.03]
[1755533849712,33.73024992,183.39,183.38,0.03]
[1755533849906,38.69080076,183.39,183.38,0.03]
[1755533850213,12.69080076,183.39,183.38,0.69]
[1755533850420,9.02906116,183.39,183.38,0.69]
[1755533850792,12.69080076,183.39,183.38,0.69]
[1755533851013,9.02906116,183.39,183.38,0.03]
[1755533851211,3.6617396,183.39,183.38,0.03]
[1755533851600,9.02906116,183.39,183.38,0.03]
[1755533851805,0.06,183.43,183.38,15.79621557]
[1755533852004,0.06,183.43,183.41,5.45226541]
[1755533852318,0.06,183.43,183.42,40.56]
[1755533852505,0.06,183.43,183.42,41.22]
[1755533854007,0.06,183.43,183.42,46.67196816]
[1755533854213,0.06,183.43,183.42,61.77818373]
[1755533857726,0.06,183.43,183.42,61.65818373]
[1755533858832,0.06,183.43,183.42,40.46]
[1755533859037,3.72654885,183.43,183.42,40.46]
[1755533859329,12.75561001,183.43,183.42,40.46]
[1755533859543,0.06,183.43,183.42,40.46]
[1755533859839,3.72654885,183.43,183.42,40.46]
[1755533860335,9.08906116,183.43,183.42,40.46]
[1755533860506,13.43561001,183.43,183.42,40.46]
[1755533860705,34.48112659,183.43,183.42,40.46]
[1755533861026,42.83018775,183.43,183.42,40.46]
[1755533861524,42.83018775,183.43,183.38,0.03]
[1755533861725,9.02906116,183.4,183.39,40.46]
[1755533861909,12.69561001,183.41,183.39,40.46]
[1755533862099,9.02906116,183.41,183.39,40.46]
[1755533862708,3.66782135,183.4,183.39,40.46]
[1755533863007,12.69688251,183.4,183.39,40.46]
[1755533863421,9.02906116,183.4,183.39,40.46]
[1755533863618,12.69688251,183.41,183.39,45.91286002]
[1755533863914,9.02906116,183.41,183.39,45.91286002]
[1755533864125,9.02906116,183.41,183.39,40.46]
[1755533864503,12.69660634,183.41,183.39,40.46]
[1755533864722,9.02906116,183.41,183.39,40.46]
[1755533864924,9.02906116,183.41,183.39,40.48]
[1755533864925,3.66754518,183.4,183.39,40.48]
[1755533865516,12.69660634,183.4,183.39,40.48]
[1755533865729,13.37660634,183.4,183.39,40.48]
[1755533866230,17.45180126,183.4,183.38,0.03]
[1755533866407,17.45186978,183.39,183.38,0.03]
[1755533866720,16.77186978,183.39,183.38,0.03]
[1755533868018,17.45186978,183.39,183.38,0.03]
[1755533868418,7.74280862,183.39,183.38,0.03]
[1755533868619,16.77186978,183.39,183.38,0.03]
[1755533869009,16.77243458,183.39,183.38,0.03]
[1755533869721,13.1048894,183.39,183.38,0.03]
[1755533870028,16.77342496,183.39,183.38,0.03]
[1755533871622,7.7443638,183.39,183.38,0.03]
[1755533871821,9.02906116,183.39,183.38,0.03]
[1755533872037,12.69759672,183.39,183.38,0.03]
[1755533872338,13.47712373,183.39,183.38,0.03]
[1755533872639,5.73340667,183.39,183.38,0.03]
[1755533872930,3.66853556,183.4,183.38,0.73]
[1755533873136,3.66853556,183.4,183.39,0.7]
[1755533873137,5.73340667,183.4,183.39,0.7]
[1755533873428,9.40194223,183.4,183.39,0.7]
[1755533873622,9.40194223,183.4,183.39,40.38]
[1755533874025,13.47677059,183.4,183.39,40.38]
[1755533875130,3.66853556,183.41,183.39,40.38]
[1755533875434,3.66853556,183.4,183.39,40.38]
[1755533875633,5.73340667,183.4,183.39,41.11]
[1755533875931,3.66853556,183.41,183.39,41.11]
[1755533876117,5.73340667,183.4,183.39,41.11]
[1755533876315,3.66853556,183.41,183.39,41.11]
[1755533876522,5.73340667,183.4,183.39,41.11]
[1755533876830,5.73340667,183.4,183.39,40.41]
[1755533877034,9.40194223,183.4,183.39,40.41]
[1755533877237,5.73340667,183.4,183.39,40.41]
[1755533877425,14.15639809,183.4,183.39,40.41]
[1755533877732,9.40194223,183.4,183.39,0.03]
[1755533877935,5.73340667,183.4,183.39,0.03]
[1755533878113,9.40194223,183.4,183.39,0.03]
[1755533878642,10.08194223,183.4,183.39,0.03]
[1755533878825,9.40194223,183.4,183.39,0.03]
[1755533879835,3.66853556,183.4,183.39,0.03]
[1755533880338,0.06,183.43,183.39,0.73]
[1755533880516,0.06,183.43,183.41,5.73340667]
[1755533880716,0.06,183.43,183.42,41.08]
[1755533881518,0.06,183.43,183.42,46.53196816]
[1755533881926,0.06,183.43,183.42,67.3715904]
[1755533882219,0.06,183.43,183.42,61.63818373]
[1755533882723,0.06,183.43,183.42,61.61818373]
[1755533883146,0.06,183.43,183.42,26.9915904]
[1755533883351,0.06,183.43,183.42,21.25818373]
[1755533883644,0.06,183.43,183.42,84.01818373]
[1755533883850,0.06,183.43,183.42,83.99818373]
[1755533884425,0.06,183.43,183.42,43.65818373]
[1755533884618,0.06,183.43,183.42,49.3915904]
[1755533884820,0.06,183.43,183.42,89.7315904]
[1755533885233,0.06,183.43,183.42,43.65818373]
[1755533885443,0.06,183.43,183.42,83.97818373]
[1755533885644,0.06,183.43,183.42,89.7315904]
[1755533885848,0.06,183.43,183.42,61.59818373]
[1755533886222,0.06,183.43,183.42,21.25818373]
[1755533886425,0.06,183.43,183.42,61.57818373]
[1755533886650,0.06,183.43,183.42,21.25818373]
[1755533886947,0.06,183.43,183.42,61.57818373]
[1755533887150,0.06,183.43,183.42,67.3115904]
[1755533887727,0.06,183.43,183.42,61.45341973]
[1755533887922,0.06,183.49,183.43,15.10621557]
[1755533888150,0.06,183.49,183.48,20.83962224]
[1755533888329,0.06,183.49,183.48,61.11962224]
[1755533888730,0.06,183.49,183.48,61.80962224]
[1755533888944,1e-08,183.49,183.48,93.54302891]
[1755533889124,0.06,183.55,183.48,94.08804744]
[1755533889325,0.06,183.55,183.52,5.73340667]
[1755533889622,0.06,183.55,183.53,40.26]
[1755533889822,0.06,183.55,183.54,40.28]
[1755533890018,5.79340667,183.55,183.54,40.28]
[1755533890858,26.0,183.52,183.43,6.14167093]
[1755533891150,5.73340667,183.44,183.41,5.45226541]
[1755533891332,5.73340667,183.44,183.42,40.24]
[1755533891539,5.73340667,183.44,183.42,46.38176236]
[1755533892146,6.43340667,183.43,183.39,0.03]
[1755533892344,26.0,183.41,183.4,40.22]
[1755533892544,26.0,183.41,183.39,0.03]
[1755533892545,32.43340667,183.41,183.39,0.03]
[1755533892729,6.43340667,183.4,183.39,0.03]
[1755533893251,26.0,183.37,183.36,0.03]
[1755533893427,31.73340667,183.37,183.36,0.03]
[1755533893626,37.88686143,183.37,183.36,0.03]
[1755533893851,38.16681334,183.37,183.36,0.03]
[1755533894454,35.73714535,183.37,183.36,0.03]
[1755533896966,35.03714535,183.37,183.36,0.03]
[1755533897175,9.03714535,183.37,183.36,0.03]
[1755533897352,0.7,183.42,183.36,0.72]
[1755533897353,9.03714535,183.38,183.36,0.72]
[1755533897554,9.03714535,183.39,183.37,0.69]
[1755533897878,9.03714535,183.4,183.36,40.19]
[1755533898163,9.03714535,183.39,183.36,40.19]
[1755533898570,9.03714535,183.39,183.36,40.88]
[1755533898739,9.03714535,183.4,183.36,40.88]
[1755533898935,9.03714535,183.4,183.37,6.14345476]
[1755533899268,19.06879723,183.52,183.37,6.14345476]
[1755533899269,0.06,183.42,183.38,9.72714535]
[1755533899430,0.06,183.42,183.39,9.72714535]
[1755533899641,0.06,183.42,183.4,40.14]
[1755533899982,0.06,183.42,183.4,40.83]
[1755533900890,0.06,183.42,183.41,6.14226541]
[1755533901378,9.09714535,183.42,183.36,0.03]
[1755533901673,9.03714535,183.37,183.36,0.03]
[1755533901847,9.03714535,183.37,183.36,40.15]
[1755533902242,9.03714535,183.37,183.36,0.03]
[1755533902483,9.73714535,183.37,183.36,0.03]
[1755533903177,9.03714535,183.37,183.36,0.03]
[1755533903579,9.73714535,183.37,183.36,0.03]
[1755533904280,9.03714535,183.37,183.36,0.03]
[1755533905372,9.73714535,183.37,183.36,0.03]
[1755533905896,9.03714535,183.37,183.36,0.03]
[1755533906095,26.0,183.4,183.36,0.03]
[1755533906384,9.03714535,183.37,183.36,0.03]
[1755533906889,9.73714535,183.37,183.36,0.03]
[1755533907496,9.03714535,183.37,183.36,0.03]
[1755533908420,35.73714535,183.37,183.36,0.03]
[1755533908612,15.19060011,183.37,183.36,0.03]
[1755533909215,9.03714535,183.36,183.34,0.03]
[1755533909419,13.38660282,183.36,183.34,0.03]
[1755533909793,9.73714535,183.36,183.34,0.03]
[1755533910124,6.15375218,183.36,183.34,0.03]
[1755533910412,9.73714535,183.36,183.34,0.03]
[1755533911121,15.19089753,183.36,183.34,0.03]
[1755533911314,9.73714535,183.36,183.34,0.03]
[1755533911614,35.03714535,183.36,183.34,0.03]
[1755533913101,26.0,183.39,183.35,0.72]
[1755533913307,9.03714535,183.36,183.35,0.72]
[1755533913927,26.0,183.39,183.35,0.72]
[1755533914222,9.03714535,183.36,183.35,0.03]
[1755533918939,9.03714535,183.37,183.35,0.69]
[1755533919099,9.03714535,183.37,183.35,0.03]
[1755533919836,9.03714535,183.37,183.35,0.69]
[1755533920141,9.03714535,183.37,183.35,0.03]
[1755533920505,40.83,183.42,183.35,0.03]
[1755533920706,9.03714535,183.39,183.35,0.69]
[1755533920901,9.03714535,183.39,183.36,0.66]
[1755533921418,35.03714535,183.39,183.35,0.03]
[1755533921622,35.03714535,183.39,183.36,0.66]
[1755533922005,9.03714535,183.38,183.35,0.03]
[1755533922198,9.03714535,183.36,183.35,0.03]
[1755533922421,5.73304193,183.36,183.35,0.03]
[1755533923321,0.69,183.38,183.35,0.03]
[1755533923500,5.73304193,183.37,183.35,0.03]
[1755533924830,5.73304193,183.37,183.35,6.14386318]
[1755533925722,0.06,183.36,183.35,5.48386318]
[1755533925902,5.79304193,183.36,183.35,0.03]
[1755533928343,6.48304193,183.36,183.35,0.03]
[1755533929445,5.79304193,183.36,183.35,0.03]
[1755533929806,0.06,183.36,183.35,0.03]
[1755533930007,5.79304193,183.36,183.35,0.03]
[1755533930326,0.06,183.36,183.35,0.03]
[1755533930528,0.06,183.36,183.35,6.42304193]
[1755533930910,0.06,183.36,183.35,21.5292575]
[1755533931834,1e-08,183.36,183.35,21.5292575]
[1755533932218,1e-08,183.38,183.36,15.10621557]
[1755533932439,1e-08,183.38,183.37,66.35271226]
[1755533932737,1e-08,183.38,183.37,46.17345476]
[1755533933944,1e-08,183.38,183.37,45.51345476]
[1755533934142,6.42304194,183.38,183.35,0.03]
[1755533934438,5.73304193,183.36,183.35,45.54397304]
[1755533934741,6.42304193,183.36,183.35,40.09]
[1755533934915,6.42304193,183.36,183.35,0.03]
[1755533935320,10.07485269,183.36,183.35,0.03]
[1755533935846,6.42304193,183.36,183.35,0.03]
[1755533936022,10.07485269,183.36,183.35,0.03]
[1755533936224,9.38485269,183.36,183.35,0.03]
[1755533936441,3.65181076,183.36,183.35,0.03]
[1755533936625,0.69000001,183.38,183.35,0.03]
[1755533936626,9.38485269,183.37,183.35,0.03]
[1755533936812,5.73304193,183.37,183.35,0.03]
[1755533937013,9.40004828,183.37,183.35,0.03]
[1755533937244,5.73304193,183.37,183.35,0.03]
[1755533937820,1e-08,183.38,183.35,0.69]
[1755533938152,1e-08,183.38,183.37,20.8392575]
[1755533938651,0.06,183.42,183.37,41.13169463]
[1755533938828,0.06,183.42,183.4,5.73304193]
[1755533939019,0.06,183.42,183.41,40.06]
[1755533940245,0.06,183.42,183.41,40.72]
[1755533940449,0.06,183.42,183.41,49.74391397]
[1755533940646,0.06,183.42,183.41,55.19617938]
[1755533941650,0.06,183.42,183.41,46.17226541]
[1755533941829,0.06,183.42,183.41,55.19617938]
[1755533942033,0.06,183.42,183.41,70.30239495]
[1755533943557,0.06,183.42,183.41,92.70239495]
[1755533945254,0.06,183.42,183.41,83.67848098]
[1755533945637,0.06,183.42,183.41,92.70239495]
[1755533946555,1e-08,183.44,183.43,15.10621557]
[1755533946860,1e-08,183.44,183.43,64.17012954]
[1755533947156,1e-08,183.44,183.43,64.83012954]
[1755533948039,1e-08,183.44,183.43,70.28180047]
[1755533950037,1e-08,183.44,183.43,21.2178865]
[1755533950239,1e-08,183.44,183.43,70.28180047]
[1755533951558,1e-08,183.44,183.43,72.46645847]
[1755533952042,0.06,183.49,183.44,15.10621557]
[1755533952236,0.06,183.49,183.46,15.10621557]
[1755533952443,0.06,183.49,183.47,49.04391397]
[1755533952631,0.06,183.49,183.47,40.02]
[1755533953738,0.06,183.49,183.47,49.04391397]
[1755533953939,0.06,183.49,183.48,9.74391397]
[1755533954148,0.06,183.49,183.48,52.70031484]
[1755533955335,0.06,183.49,183.48,43.67640087]
[1755533955542,0.06,183.49,183.48,51.98031484]
[1755533955861,0.06,183.49,183.48,52.70031484]
[1755533956660,0.06,183.49,183.48,27.8501853]
[1755533956849,0.78,183.49,183.48,67.8701853]
[1755533957445,0.06,183.49,183.48,67.8701853]
[1755533958436,0.06,183.49,183.48,45.4701853]
[1755533961566,0.06,183.49,183.48,51.91316755]
[1755533961869,0.06,183.49,183.48,67.01938312]
[1755533963343,0.06,183.49,183.48,61.29640087]
[1755533963546,0.06,183.49,183.48,67.01938312]
[1755533964147,0.06,183.49,183.48,61.29640087]
[1755533964351,0.06,183.49,183.48,89.41938312]
[1755533965655,1e-08,183.51,183.49,15.10621557]
[1755533965858,1e-08,183.51,183.5,46.26794137]
[1755533966168,1e-08,183.51,183.5,46.98794137]
[1755533966467,1e-08,183.51,183.5,69.38794137]
[1755533966671,1e-08,183.51,183.5,68.84298225]
[1755533967154,1e-08,183.51,183.5,74.29257353]
[1755533967671,1e-08,183.51,183.5,89.3987891]
[1755533969064,1e-08,183.51,183.5,83.67580685]
[1755533969274,1e-08,183.51,183.5,89.3987891]
[1755533970460,1e-08,183.51,183.5,49.3987891]
[1755533970656,1e-08,183.51,183.5,89.3987891]
[1755533971053,1e-08,183.55,183.54,41.10621557]
[1755533971349,1e-08,183.55,183.54,115.22244179]
[1755533971553,0.2,183.57,183.54,115.22244179]
[1755533971554,1e-08,183.57,183.54,115.39760143]
[1755533971761,1e-08,183.57,183.56,5.72298225]
[1755533971960,1e-08,183.57,183.56,45.70298225]
[1755533972153,1e-08,183.57,183.56,46.42298225]
[1755533973142,1e-08,183.57,183.56,45.70298225]
[1755533973370,1e-08,183.57,183.56,51.15079223]
[1755533974366,1e-08,183.57,183.56,66.2570078]
[1755533978174,1e-08,183.57,183.56,66.9470078]
[1755533978493,1e-08,183.57,183.56,67.49178879]
[1755533979461,1e-08,183.59,183.58,41.10621557]
[1755533979658,1e-08,183.61,183.59,15.10621557]
[1755533979872,0.71,183.66,183.61,15.10621557]
[1755533980052,0.71,183.67,183.64,5.72298225]
[1755533980378,0.71,183.67,183.65,39.98]
[1755533981282,0.71,183.67,183.66,39.96]
[1755533981452,5.72298225,183.68,183.66,45.40484373]
[1755533981857,5.72298225,183.69,183.66,45.40484373]
[1755533982158,0.71,183.69,183.66,45.40484373]
[1755533982380,0.2,183.7,183.66,59.01695306]
[1755533982581,0.91,183.7,183.66,64.73993531]
[1755533982774,0.91,183.7,183.67,20.82919782]
[1755533982973,0.91,183.7,183.68,39.96]
[1755533983381,0.2,183.7,183.68,39.96]
[1755533983596,0.2,183.7,183.69,5.44395448]
[1755533984468,0.2,183.7,183.69,26.9631523]
[1755533984691,0.2,183.7,183.69,20.55017005]
[1755533984893,0.2,183.7,183.69,5.44395448]
[1755533986387,0.2,183.7,183.69,20.55017005]
[1755533986694,0.2,183.7,183.69,21.24017005]
[1755533987073,1e-08,183.7,183.69,26.9631523]
[1755533987480,0.2,183.74,183.73,46.82919782]
[1755533987690,0.2,183.74,183.73,86.48898485]
[1755533987905,0.2,183.74,183.73,87.17898485]
[1755533989877,0.2,183.74,183.73,92.9019671]
[1755533990986,5.72298225,183.79,183.73,106.5088903]
[1755533991194,0.06,183.78,183.73,106.5088903]
[1755533991381,0.06,183.78,183.75,15.10621557]
[1755533991580,0.06,183.78,183.77,15.10621557]
[1755533991781,0.06,183.8,183.77,55.04621557]
[1755533991976,0.06,183.8,183.78,0.69]
[1755533992178,0.06,183.8,183.79,39.94]
[1755533992394,0.06,183.8,183.79,45.38099243]
[1755533992705,5.78298225,183.8,183.79,39.94]
[1755533993680,6.49298225,183.8,183.77,5.44158458]
[1755533993894,5.72298225,183.78,183.77,5.44158458]
[1755533994096,5.72298225,183.78,183.77,45.36158458]
[1755533994413,5.72298225,183.78,183.72,13.60727242]
[1755533994414,6.43298225,183.78,183.72,13.60727242]
[1755533994583,5.72298225,183.73,183.7,20.5498737]
[1755533994774,5.72298225,183.73,183.71,39.92]
[1755533995189,5.72298225,183.74,183.71,39.92]
[1755533995411,5.72298225,183.73,183.71,39.92]
[1755533995594,0.71,183.75,183.71,39.92]
[1755533995595,5.72298225,183.72,183.71,39.92]
[1755533995794,5.72298225,183.73,183.71,55.02621557]
[1755533996385,5.72298225,183.72,183.71,55.02621557]
[1755533996581,5.72298225,183.72,183.71,60.46957739]
[1755533997480,5.72298225,183.73,183.71,60.46957739]
[1755533997983,0.71,183.79,183.72,15.79621557]
[1755533998190,5.72298225,183.77,183.74,15.10621557]
[1755533998386,5.72298225,183.77,183.75,39.92]
[1755533998601,0.71,183.79,183.76,5.44188071]
[1755533998794,5.72298225,183.79,183.77,39.92]
[1755533999187,5.78298225,183.8,183.77,39.92]
[1755533999825,5.72298225,183.78,183.76,5.44188071]
[1755534000032,6.43298225,183.77,183.75,5.44209554]
[1755534000322,6.43298225,183.76,183.75,5.44209554]
[1755534000616,6.43298225,183.76,183.75,45.36209554]
[1755534001106,5.72298225,183.76,183.75,45.36209554]
[1755534002004,6.43298225,183.76,183.66,15.10621557]
[1755534002206,0.71,183.75,183.7,39.9]
[1755534002519,5.72298225,183.71,183.7,39.9]
[1755534002691,6.43298225,183.71,183.7,39.9]
[1755534002892,6.43298225,183.71,183.67,0.03]
[1755534003205,0.71,183.74,183.7,39.9]
[1755534003405,0.71,183.73,183.7,39.9]
[1755534003629,0.71,183.72,183.7,39.9]
[1755534003921,0.71,183.71,183.7,39.9]
[1755534004289,8.99942527,183.71,183.7,45.34365813]
[1755534004692,8.99942527,183.71,183.7,39.9]
[1755534004922,8.99942527,183.71,183.69,0.03]
[1755534004923,9.70942527,183.71,183.69,0.03]
[1755534005231,44.70885054,183.7,183.69,0.03]
[1755534005587,26.0,183.68,183.67,0.03]
[1755534005805,34.99942527,183.68,183.67,0.03]
[1755534006204,41.15367614,183.68,183.65,39.93]
[1755534006418,26.0,183.64,183.63,0.03]
[1755534006637,34.99942527,183.64,183.63,0.03]
[1755534006784,8.99942527,183.55,183.52,0.69]
[1755534006984,8.99942527,183.55,183.53,39.9]
[1755534007284,0.71,183.59,183.53,39.9]
[1755534007503,8.99942527,183.55,183.53,39.9]
[1755534007924,8.99942527,183.56,183.53,40.6]
[1755534008408,8.99942527,183.56,183.54,6.14840361]
[1755534008819,8.99942527,183.56,183.54,5.44840361]
[1755534009387,8.99942527,183.56,183.54,6.14840361]
[1755534009617,8.99942527,183.55,183.54,5.44840361]
[1755534010895,8.99942527,183.56,183.54,5.44840361]
[1755534011301,8.99942527,183.55,183.54,5.44840361]
[1755534011515,8.99942527,183.55,183.53,39.9]
[1755534011694,8.99942527,183.54,183.53,39.9]
[1755534012425,8.99942527,183.54,183.53,45.34870048]
[1755534012837,8.99942527,183.54,183.53,39.9]
[1755534012999,9.71942527,183.54,183.5,0.2]
[1755534013192,8.99942527,183.51,183.5,0.2]
[1755534013397,0.72,183.53,183.5,45.5495132]
[1755534013598,8.99942527,183.51,183.5,46.2495132]
[1755534013798,8.99942527,183.52,183.5,46.2495132]
[1755534014017,26.0,183.56,183.51,0.7]